fUSD/lending_fUSD_20251223
["ID","MTS","AMOUNT","RATE_DAILY","PERIOD"]
[399572737,1766508546896,-1000.0,0.00061999,120]
[399572738,1766508546937,-1000.0,0.00062,120]
[399572739,1766508546985,-200.0,0.00062,120]
[399572740,1766508547036,-150.0,0.00062,120]
[399572741,1766508547079,-300.0,0.00062,120]
[399572742,1766508547121,-18623.48496876,0.00062,120]
[399572743,1766508547168,-25000.0,0.00062,120]
[399572744,1766508547213,-200.0,0.00062,120]
[399572745,1766508547257,-10000.0,0.00062,120]
[399572746,1766508547301,-5000.0,0.00062,75]
[399572747,1766508547347,-253.0,0.00062,111]
[399572748,1766508547391,-50000.0,0.000621,120]
[399572749,1766508547431,-167.0,0.000621,120]
[399572750,1766508547470,-179.0,0.000621,120]
[399572751,1766508547508,-50000.0,0.0006235,120]
[399572752,1766508547547,-200.0,0.00062487,120]
[399572753,1766508547584,-2032.31651312,0.0006249,68]
[399572754,1766508547622,-50000.0,0.000626,120]
[399572755,1766508547661,-167.0,0.000626,120]
[399572756,1766508547698,-179.0,0.000626,120]
[399572757,1766508547735,-4612.02979919,0.000628,120]
[399572758,1766508547772,-50000.0,0.0006285,120]
[399572759,1766508547811,-1000.0,0.00063,120]
[399572760,1766508547852,-1000.0,0.00063,120]
[399572761,1766508547891,-193.0,0.00063,120]
[399572762,1766508547929,-25000.0,0.00063,120]
[399572763,1766508547968,-200.0,0.00063,120]
[399572764,1766508548010,-253.0,0.00063,114]
[399572765,1766508548055,-6185.35,0.00063014,120]
[399572766,1766508558142,-54.23748783,0.00011275,2]
[399572767,1766508558165,-246.58919864,0.00011377,2]
[399572768,1766508558188,-579.06,0.0001148,2]
[399572769,1766508558213,-579.06,0.0001189,2]
[399572770,1766508558236,-579.06,0.000123,2]
[399572771,1766508558260,-189.35095466,0.00012302,2]
[399572772,1766508558282,-250.0,0.00012403,2]
[399572773,1766508558305,-195.0,0.00012403,2]
[399572774,1766508558326,-300.0,0.00012403,2]
[399572775,1766508558349,-579.06,0.0001271,2]
[399572776,1766508558370,-189.35095464,0.00012944,2]
[399572777,1766508558392,-169.0,0.00013029,2]
[399572778,1766508558414,-579.06,0.0001312,2]
[399572779,1766508558435,-150.0,0.00013269,2]
[399572780,1766508558456,-163.84,0.000135,2]
[399572781,1766508558479,-579.06,0.0001353,2]
[399572782,1766508558502,-38.47970823,0.00013584,2]
[399572797,1766508631873,-300.0,0.00013584,2]
[399572798,1766508631888,-1200.0,0.00013584,2]
[399572799,1766508631903,-596.362,0.00013585,2]
[399572800,1766508631918,-158.435,0.00013585,2]
[399572801,1766508631933,-150.0,0.00013585,2]
[399572802,1766508631946,-14518.42460477,0.00013586,2]
[399572803,1766508631973,-5877.37621988,0.00013586,2]
[399572804,1766508631995,-6553.8,0.00013586,2]
[399572805,1766508632013,-1454.3177173,0.00013586,2]
[399572806,1766508632030,-2895.1177145,0.00013586,2]
[399572807,1766508632046,-2202.26114355,0.00013586,2]
[399572808,1766508632061,-2500.0,0.00013586,2]
[399572809,1766508632076,-637.58995524,0.00013598,2]
[399572810,1766508632090,-3955.62308561,0.00013598,2]
[399572811,1766508632104,-171.2018475,0.00013598,2]
[399572812,1766508632116,-151.0,0.00013678,2]
[399572813,1766508632129,-151.0,0.00013678,2]
[399572814,1766508632144,-151.0,0.00013678,2]
[399572815,1766508632157,-151.0,0.00013678,2]
[399572816,1766508632171,-151.0,0.00013678,2]
[399572817,1766508632184,-151.0,0.00013678,2]
[399572818,1766508632203,-151.0,0.00013678,2]
[399572819,1766508632218,-151.0,0.00013678,2]
[399572820,1766508632233,-151.0,0.00013678,2]
[399572821,1766508632247,-151.0,0.00013678,2]
[399572824,1766508632261,-500.0,0.00013698,2]
[399572826,1766508632274,-183.93452706,0.00013698,2]
[399572827,1766508632288,-777.29,0.00013698,2]
[399572828,1766508632302,-777.29,0.00013698,2]
[399572829,1766508632315,-777.29,0.00013698,2]
[399572830,1766508632329,-777.29,0.00013698,2]
[399572831,1766508632342,-500.0,0.00013698,2]
[399572832,1766508632356,-500.0,0.00013698,2]
[399572833,1766508632368,-500.0,0.00013698,2]
[399572834,1766508632380,-500.0,0.00013698,2]
[399572835,1766508632393,-482.26053294,0.00013698,2]
[399572836,1766508632405,-500.0,0.00013698,2]
[399572837,1766508632417,-525.99859536,0.00013698,2]
[399572838,1766508632429,-500.0,0.00013698,2]
[399572839,1766508632442,-370.97583972,0.00013698,2]
[399572842,1766508632454,-500.0,0.00013698,2]
[399572843,1766508632467,-500.0,0.00013698,2]
[399572844,1766508632479,-500.0,0.00013698,2]
[399572846,1766508632490,-500.0,0.00013698,2]
[399572848,1766508632502,-500.0,0.00013698,2]
[399572850,1766508632516,-500.0,0.00013698,2]
[399572853,1766508632533,-500.0,0.00013698,2]
[399572855,1766508632545,-500.0,0.00013698,2]
[399572858,1766508632558,-500.0,0.00013698,2]
[399572860,1766508632572,-500.0,0.00013698,2]
[399572862,1766508632586,-500.0,0.00013698,2]
[399572865,1766508632600,-500.0,0.00013698,2]
[399572867,1766508632614,-250.42,0.00013698,2]
[399572870,1766508632627,-401.9853,0.00013786,2]
[399572872,1766508632641,-500.0,0.00013885,2]
[399572875,1766508632655,-500.0,0.00013885,2]
[399572877,1766508632668,-557.27405055,0.00013885,2]
[399572880,1766508632681,-500.0,0.00013885,2]
[399572882,1766508632694,-500.0,0.00013885,2]
[399572884,1766508632707,-500.0,0.00013885,2]
[399572887,1766508632721,-604.31886581,0.00013885,2]
[399572889,1766508632734,-500.0,0.00013885,2]
[399572892,1766508632747,-500.0,0.00013885,2]
[399572894,1766508632761,-500.0,0.00013885,2]
[399572896,1766508632773,-500.0,0.00013885,2]
[399572899,1766508632787,-500.0,0.00013885,2]
[399572901,1766508632800,-628.13024647,0.00013885,2]
[399572904,1766508632816,-500.0,0.00013885,2]
[399572906,1766508632828,-196.6,0.00013885,2]
[399572908,1766508632841,-579.06,0.0001394,2]
[399572911,1766508632853,-3955.62308558,0.00013965,2]
[399572913,1766508632871,-250.42,0.00013972,2]
[399572916,1766508632884,-637.58995519,0.00014148,2]
[399572918,1766508632898,-171.20184744,0.00014148,2]
[399572921,1766508632913,-250.42,0.00014246,2]
[399572923,1766508632927,-3955.62308558,0.00014332,2]
[399572925,1766508632941,-579.06,0.0001435,2]
[399572928,1766508632955,-250.42,0.0001452,2]
[399572930,1766508632969,-637.58995519,0.00014699,2]
[399572933,1766508632984,-171.20184744,0.00014699,2]
[399572935,1766508632998,-3955.62308558,0.00014699,2]
[399572938,1766508633018,-255.0,0.00014699,2]
[399572940,1766508633035,-579.06,0.0001476,2]
[399572943,1766508633055,-250.46012305,0.00014794,2]
[399572946,1766508633075,-1680.0,0.00014942,2]
[399572948,1766508633095,-3955.62308558,0.00015066,2]
[399572949,1766508633108,-579.06,0.0001517,2]
[399572950,1766508633121,-151.0,0.00015238,2]
[399572951,1766508633133,-151.0,0.0001524,2]
[399572952,1766508633144,-151.0,0.00015245,2]
[399572953,1766508633154,-151.0,0.00015246,2]
[399572954,1766508633165,-637.58995519,0.00015249,2]
[399572955,1766508633176,-171.20184744,0.00015249,2]
[399572971,1766508633785,-3955.62308558,0.00015432,2]
[399572972,1766508633834,-579.06,0.0001558,2]
[399572973,1766508633851,-175.21,0.00015609,2]
[399572974,1766508633861,-500.77132056,0.00015783,2]
[399572975,1766508633871,-201.98303125,0.00015783,2]
[399572976,1766508633882,-500.0,0.00015783,2]
[399572977,1766508633892,-628.25452076,0.00015783,2]
[399572978,1766508633902,-500.0,0.00015783,2]
[399572979,1766508633912,-500.0,0.00015783,2]
[399572980,1766508633921,-637.58995519,0.00015799,2]
[399572981,1766508633931,-171.20184744,0.00015799,2]
[399572982,1766508633942,-3955.62308558,0.00015799,2]
[399572983,1766508633952,-187.0,0.00015908,2]
[399572984,1766508633962,-612.0,0.00015992,2]
[399572985,1766508633974,-1609.0,0.00015992,2]
[399572986,1766508633984,-3457.0,0.00015992,2]
[399572987,1766508633994,-1326.0,0.00015992,2]
[399572988,1766508634004,-921.291,0.00015992,2]
[399572989,1766508634015,-923.123,0.00015992,2]
[399572990,1766508634026,-1263.0,0.00015992,2]
[399572991,1766508634036,-468.0,0.00015992,2]
[399572992,1766508634046,-4806.0,0.00015992,2]
[399572993,1766508634056,-564.0,0.00015992,2]
[399572994,1766508634066,-777.29,0.00016166,2]
[399572995,1766508634076,-500.0,0.00016166,2]
[399572996,1766508634086,-3955.62308558,0.00016166,2]
[399572997,1766508634096,-696.22588074,0.00016331,2]
[399572998,1766508634106,-1000.0,0.00016331,2]
[399572999,1766508634116,-1000.0,0.00016331,2]
[399573000,1766508634127,-637.58995519,0.0001635,2]
[399573001,1766508634137,-171.20184744,0.0001635,2]
[399573002,1766508634147,-500.0,0.00016438,2]
[399573003,1766508634157,-500.0,0.00016438,2]
[399573004,1766508634167,-6039.64,0.00016438,2]
[399573005,1766508634177,-235.76832595,0.00016438,2]
[399573006,1766508634188,-3955.62308558,0.00016533,2]
[399573007,1766508634198,-1000.0,0.000166,2]
[399573008,1766508634208,-1949.54795688,0.0001666,2]
[399573009,1766508634219,-5000.0,0.00016712,2]
[399573010,1766508634230,-3149.0,0.00016728,2]
[399573011,1766508634240,-926.45060488,0.0001683,2]
[399573012,1766508634251,-500.0,0.00016864,2]
[399573013,1766508634261,-200.0,0.00016864,2]
[399573014,1766508634271,-3899.0,0.00016877,2]
[399573015,1766508634281,-1500.0,0.00016878,2]
[399573016,1766508634291,-1500.0,0.00016878,2]
[399573017,1766508634303,-500.0,0.00016899,2]
[399573018,1766508634313,-10000.0,0.000169,2]
[399573019,1766508634323,-637.58995519,0.000169,2]
[399573020,1766508634333,-171.20184744,0.000169,2]
[399573021,1766508634343,-3955.62308558,0.000169,2]
[399573022,1766508634354,-6505.9565896,0.000169,2]
[399573023,1766508634363,-2385.63079468,0.000169,2]
[399573024,1766508634373,-163.8096398,0.000169,2]
[399573025,1766508634383,-4975.0,0.000169,2]
[399573026,1766508634394,-5000.0,0.00016986,2]
[399573027,1766508634404,-9744.93229951,0.00016986,2]
[399573028,1766508634419,-4638.02716047,0.00016986,2]
[399573029,1766508634432,-445.61003941,0.00016986,2]
[399573042,1766508638018,-151.0,0.00015247,2]
[399573043,1766508638028,-150.0,0.00015992,2]
[399573044,1766508638038,-27801.55050061,0.00016986,2]
[399573045,1766508638048,-1090.24693266,0.00016989,5]
[399573046,1766508638064,-301.4414445,0.0001699,2]
[399573047,1766508638074,-301.4414445,0.0001699,2]
[399573048,1766508638084,-301.4414445,0.0001699,2]
[399573049,1766508638096,-3057.1574349,0.00016997,2]
[399573050,1766508638106,-300.0,0.00016999,2]
[399573051,1766508638116,-500.0,0.00016999,2]
[399573052,1766508638126,-500.0,0.00016999,2]
[399573053,1766508638136,-537.28,0.00016999,2]
[399573054,1766508638146,-777.29,0.00016999,2]
[399573055,1766508638157,-777.29,0.00016999,2]
[399573056,1766508638167,-777.29,0.00016999,2]
[399573057,1766508638180,-777.29,0.00016999,2]
[399573058,1766508638190,-777.29,0.00016999,2]
[399573059,1766508638201,-777.29,0.00016999,2]
[399573060,1766508638212,-777.29,0.00016999,2]
[399573061,1766508638223,-777.29,0.00016999,2]
[399573063,1766508638234,-777.29,0.00016999,2]
[399573064,1766508638245,-777.29,0.00016999,2]
[399573066,1766508638256,-777.29,0.00016999,2]
[399573068,1766508638266,-777.29,0.00016999,2]
[399573069,1766508638277,-777.29,0.00016999,2]
[399573070,1766508638287,-777.29,0.00016999,2]
[399573071,1766508638298,-777.29,0.00016999,2]
[399573072,1766508638309,-777.29,0.00016999,2]
[399573073,1766508638321,-777.29,0.00016999,2]
[399573074,1766508638332,-777.29,0.00016999,2]
[399573076,1766508638342,-777.52777952,0.00016999,2]
[399573078,1766508638353,-500.0,0.00016999,2]
[399573080,1766508638364,-500.0,0.00016999,2]
[399573082,1766508638374,-500.0,0.00016999,2]
[399573084,1766508638383,-500.0,0.00016999,2]
[399573086,1766508638394,-1090.24693266,0.00016999,5]
[399573088,1766508638404,-1090.24693266,0.00016999,5]
[399573090,1766508638414,-300.0,0.00016999,2]
[399573093,1766508638424,-247.7695039,0.00016999,2]
[399573095,1766508638434,-300.0,0.00016999,2]
[399573097,1766508638444,-500.0,0.00016999,2]
[399573099,1766508638455,-500.0,0.00016999,2]
[399573101,1766508638465,-300.0,0.00016999,2]
[399573103,1766508638476,-300.0,0.00016999,2]
[399573105,1766508638486,-290.98146076,0.00016999,2]
[399573107,1766508638499,-220.71125758,0.00016999,2]
[399573109,1766508638509,-500.0,0.00016999,2]
[399573111,1766508638519,-603.48661687,0.00016999,2]
[399573113,1766508638529,-500.0,0.00016999,2]
[399573115,1766508638539,-500.0,0.00016999,2]
[399573117,1766508638548,-500.0,0.00016999,2]
[399573119,1766508638558,-500.0,0.00016999,2]
[399573121,1766508638568,-500.0,0.00016999,2]
[399573123,1766508638578,-500.0,0.00016999,2]
[399573125,1766508638588,-500.0,0.00016999,2]
[399573127,1766508638597,-500.0,0.00016999,2]
[399573129,1766508638607,-500.0,0.00016999,2]
[399573131,1766508638617,-500.0,0.00016999,2]
[399573133,1766508638627,-500.0,0.00016999,2]
[399573135,1766508638636,-500.0,0.00016999,2]
[399573137,1766508638646,-500.0,0.00016999,2]
[399573139,1766508638657,-500.0,0.00016999,2]
[399573141,1766508638667,-500.0,0.00016999,2]
[399573143,1766508638677,-500.0,0.00016999,2]
[399573146,1766508638688,-500.0,0.00016999,2]
[399573148,1766508638697,-500.0,0.00016999,2]
[399573150,1766508638707,-500.0,0.00016999,2]
[399573152,1766508638718,-500.0,0.00016999,2]
[399573154,1766508638728,-500.0,0.00016999,2]
[399573156,1766508638739,-500.0,0.00016999,2]
[399573158,1766508638749,-500.0,0.00016999,2]
[399573160,1766508638760,-500.0,0.00016999,2]
[399573162,1766508638771,-500.0,0.00016999,2]
[399573164,1766508638783,-500.0,0.00016999,2]
[399573166,1766508638794,-500.0,0.00016999,2]
[399573168,1766508638804,-500.0,0.00016999,2]
[399573170,1766508638813,-500.0,0.00016999,2]
[399573172,1766508638823,-500.0,0.00016999,2]
[399573174,1766508638834,-500.0,0.00016999,2]
[399573176,1766508638844,-500.0,0.00016999,2]
[399573178,1766508638855,-500.0,0.00016999,2]
[399573180,1766508638864,-500.0,0.00016999,2]
[399573183,1766508638875,-500.0,0.00016999,2]
[399573185,1766508638885,-500.0,0.00016999,2]
[399573187,1766508638895,-500.0,0.00016999,2]
[399573189,1766508638906,-500.0,0.00016999,2]
[399573191,1766508638916,-500.0,0.00016999,2]
[399573193,1766508638926,-500.0,0.00016999,2]
[399573195,1766508638937,-500.0,0.00016999,2]
[399573197,1766508638946,-500.0,0.00016999,2]
[399573199,1766508638957,-500.0,0.00016999,2]
[399573201,1766508638966,-500.0,0.00016999,2]
[399573203,1766508638976,-500.0,0.00016999,2]
[399573205,1766508638988,-500.0,0.00016999,2]
[399573207,1766508638999,-500.0,0.00016999,2]
[399573209,1766508639010,-500.0,0.00016999,2]
[399573211,1766508639026,-500.0,0.00016999,2]
[399573213,1766508639037,-500.0,0.00016999,2]
[399573215,1766508639047,-500.0,0.00016999,2]
[399573217,1766508639060,-500.0,0.00016999,2]
[399573219,1766508639071,-500.0,0.00016999,2]
[399573221,1766508639081,-500.0,0.00016999,2]
[399573222,1766508639398,-500.0,0.00016999,2]
[399573224,1766508639409,-500.0,0.00016999,2]
[399573226,1766508639420,-500.0,0.00016999,2]
[399573228,1766508639429,-500.0,0.00016999,2]
[399573230,1766508639440,-178.18698668,0.00016999,2]
[399573232,1766508639450,-500.0,0.00016999,2]
[399573234,1766508639460,-500.0,0.00016999,2]
[399573237,1766508639470,-500.0,0.00016999,2]
[399573239,1766508639480,-500.0,0.00016999,2]
[399573240,1766508639490,-500.0,0.00016999,2]
[399573242,1766508639500,-500.0,0.00016999,2]
[399573244,1766508639510,-500.0,0.00016999,2]
[399573246,1766508639520,-425.92967826,0.00016999,2]
[399573249,1766508639530,-500.0,0.00016999,2]
[399573250,1766508639540,-500.0,0.00016999,2]
[399573253,1766508639551,-667160.32645307,0.00017,2]
[399573258,1766508639597,-138581.85596698,0.00017,2]
[399573260,1766508639609,-592.47286909,0.00017,2]
[399573302,1766508640027,-268.361,0.00017,2]
[399573304,1766508640040,-363.25709748,0.00017,2]
[399573307,1766508640240,-3504796.79690284,0.00017,2]
[399573308,1766508640251,-150.0,0.00017,2]
[399573309,1766508640261,-877.07302846,0.00017,2]
[399573310,1766508640272,-1300827.96915368,0.00017,2]
[399573311,1766508640403,-7869.11312225,0.00017,2]
[399573371,1766508685939,-2430.0,0.00015992,2]
[399573372,1766508685950,-212.0,0.00015992,2]
[399573373,1766508685960,-262.0,0.00015992,2]
[399573374,1766508685971,-9324297.15280617,0.00017,2]
[399573375,1766508685981,-7655.9377133,0.00017,4]
[399573376,1766508685991,-754869.83037585,0.00017,2]
[399573377,1766508686001,-2000.0,0.00017,2]
[399573378,1766508686011,-200.0,0.00017,2]
[399573379,1766508686022,-151.0,0.00017,2]
[399573380,1766508686035,-200.0,0.00017,2]
[399573381,1766508686045,-151.0,0.00017,2]
[399573382,1766508686056,-250.0,0.00017,2]
[399573383,1766508686066,-151.0,0.00017,2]
[399573384,1766508686078,-151.0,0.00017,2]
[399573385,1766508686088,-151.0,0.00017,2]
[399573386,1766508686098,-200.0,0.00017,2]
[399573387,1766508686111,-151.0,0.00017,2]
[399573388,1766508686121,-208.0,0.00017141,2]
[399573389,1766508686132,-200.0,0.0001717,2]
[399573390,1766508686143,-200.0,0.0001717,2]
[399573391,1766508686154,-200.0,0.0001717,2]
[399573392,1766508686170,-208.0,0.00017174,2]
[399573393,1766508686181,-208.0,0.0001719,2]
[399573394,1766508686191,-166.66,0.00017251,2]
[399573395,1766508686202,-469.94,0.0001726,2]
[399573396,1766508686212,-300.0,0.0001726,2]
[399573397,1766508686223,-300.46,0.0001726,2]
[399573398,1766508686233,-1000.0,0.00017287,2]
[399573399,1766508686243,-208.0,0.00017292,2]
[399573400,1766508686254,-200.0,0.00017342,2]
[399573401,1766508686265,-200.0,0.00017342,2]
[399573402,1766508686277,-208.0,0.00017349,2]
[399573403,1766508686287,-208.0,0.00017366,2]
[399573404,1766508686298,-208.0,0.00017368,2]
[399573405,1766508686309,-167.07,0.00017373,2]
[399573406,1766508686319,-208.0,0.00017376,2]
[399573407,1766508686330,-208.0,0.0001739,2]
[399573408,1766508686342,-2000.0,0.00017426,2]
[399573409,1766508686354,-2000.0,0.00017426,2]
[399573410,1766508686365,-200.0,0.00017515,2]
[399573411,1766508686376,-208.0,0.00017549,2]
[399573412,1766508686387,-208.0,0.0001756,2]
[399573413,1766508686399,-208.0,0.00017572,2]
[399573414,1766508686411,-200.0,0.0001769,2]
[399573415,1766508686424,-208.0,0.0001775,2]
[399573416,1766508686436,-208.0,0.00017774,2]
[399573417,1766508686447,-208.0,0.00017791,2]
[399573418,1766508686458,-208.0,0.00017813,2]
[399573419,1766508686470,-166.66,0.00017884,2]
[399573420,1766508686481,-208.0,0.00017899,2]
[399573421,1766508686492,-342.8792536,0.00017974,2]
[399573422,1766508686502,-2500.0,0.00017974,2]
[399573423,1766508686513,-225.31,0.00018,21]
[399573424,1766508686529,-1000.0,0.00018,2]
[399573425,1766508686541,-500.0,0.00018,5]
[399573426,1766508686552,-48950.25283694,0.00018,2]
[399573427,1766508686564,-208.0,0.00018064,2]
[399573428,1766508686575,-1000.0,0.00018082,2]
[399573429,1766508686587,-357.0,0.00018082,2]
[399573430,1766508686598,-300.0,0.00018082,2]
[399573431,1766508686608,-300.0,0.00018082,2]
[399573432,1766508686619,-170.73,0.00018082,2]
[399573433,1766508686631,-464.86,0.00018082,2]
[399573434,1766508686642,-170.73,0.00018082,2]
[399573435,1766508686653,-464.86,0.00018082,2]
[399573436,1766508686665,-464.86,0.00018082,2]
[399573437,1766508686676,-170.73,0.00018082,2]
[399573438,1766508686687,-170.73,0.00018082,2]
[399573439,1766508686698,-168.0,0.00018115,2]
[399573440,1766508686709,-208.0,0.0001813,2]
[399573441,1766508686723,-167.07,0.00018234,2]
[399573442,1766508686734,-168.0,0.00018238,2]
[399573443,1766508686746,-208.0,0.00018402,2]
[399573444,1766508686756,-1471.24302708,0.00018522,2]
[399573445,1766508686768,-150.0,0.00018673,2]
[399573446,1766508686778,-1000.0,0.0001876,2]
[399573447,1766508686790,-186.01952262,0.000189,2]
[399573448,1766508686800,-151.0,0.00018992,2]
[399573449,1766508686811,-151.0,0.00018992,2]
[399573450,1766508686822,-151.0,0.00018992,2]
[399573451,1766508686832,-151.0,0.00018992,2]
[399573452,1766508686843,-612.0,0.00018992,2]
[399573453,1766508686855,-1609.0,0.00018992,2]
[399573454,1766508686865,-1669.416,0.00018992,2]
[399573455,1766508686877,-1325.885,0.00018992,2]
[399573456,1766508686887,-912.0,0.00018992,2]
[399573457,1766508686898,-1263.0,0.00018992,2]
[399573458,1766508686908,-468.0,0.00018992,2]
[399573459,1766508686919,-4806.0,0.00018992,2]
[399573460,1766508686930,-564.0,0.00018992,2]
[399573461,1766508686941,-150.0,0.00018992,2]
[399573462,1766508686952,-2430.0,0.00018992,2]
[399573463,1766508686963,-300.0,0.00018999,2]
[399573464,1766508686974,-300.0,0.00018999,2]
[399573465,1766508686985,-300.0,0.00018999,2]
[399573466,1766508686996,-224313.88392069,0.00019,2]
[399573467,1766508687008,-224313.88392069,0.00019,2]
[399573468,1766508687019,-3713.11903901,0.00019,2]
[399573469,1766508687031,-804.80708623,0.00019,2]
[399573470,1766508687045,-151.0,0.00019178,2]
[399573471,1766508687056,-151.0,0.00019178,2]
[399573472,1766508687067,-151.0,0.00019178,2]
[399573473,1766508687080,-151.0,0.00019178,2]
[399573474,1766508687101,-214.112706,0.00019178,2]
[399573475,1766508687122,-214.112706,0.00019178,2]
[399573476,1766508687136,-214.112706,0.00019178,2]
[399573477,1766508687148,-214.112706,0.00019178,2]
[399573478,1766508687161,-214.112706,0.00019178,2]
[399573479,1766508687173,-214.112706,0.00019178,2]
[399573480,1766508687185,-214.112706,0.00019178,2]
[399573481,1766508687197,-214.112706,0.00019178,2]
[399573482,1766508687209,-478.072631,0.00019178,2]
[399573483,1766508687220,-478.072631,0.00019178,2]
[399573484,1766508687232,-478.072631,0.00019178,2]
[399573485,1766508687245,-478.072631,0.00019178,2]
[399573486,1766508687256,-478.072631,0.00019178,2]
[399573487,1766508687268,-478.072631,0.00019178,2]
[399573488,1766508687280,-478.072631,0.00019178,2]
[399573489,1766508687291,-478.072631,0.00019178,2]
[399573490,1766508687303,-1000.0,0.00019207,2]
[399573491,1766508687314,-299.99,0.00019339,7]
[399573492,1766508687326,-499.99,0.00019339,2]
[399573493,1766508687337,-9999.99,0.00019339,2]
[399573494,1766508687348,-27978.45,0.00019339,2]
[399573495,1766508687359,-697.76,0.00019339,2]
[399573496,1766508687371,-150.99,0.00019339,2]
[399573497,1766508687382,-1000.0,0.00019438,2]
[399573498,1766508687394,-152.2069062,0.00019661,2]
[399573499,1766508687406,-1075.03616048,0.00019706,2]
[399573500,1766508687416,-423.34883705,0.00019949,2]
[399573501,1766508687427,-300.0,0.00019949,2]
[399573502,1766508687444,-306.35405335,0.00019949,2]
[399573503,1766508687456,-160346.88640758,0.0001995,15]
[399573504,1766508687468,-804.80708623,0.0001995,2]
[399573505,1766508687480,-300.0,0.00019999,2]
[399573506,1766508687492,-160.43471364,0.0002,2]
[399573507,1766508687504,-200.0,0.0002,2]
[399573508,1766508687515,-25162.4555576,0.0002,20]
[399573509,1766508687527,-18702.65304975,0.0002,14]
[399573510,1766508687539,-2921.39470654,0.0002,7]
[399573511,1766508687550,-495.70702807,0.0002,10]
[399573512,1766508687561,-526.34537665,0.0002,7]
[399573513,1766508687573,-330717.32823311,0.0002,5]
[399573514,1766508687584,-4922.89297291,0.0002,2]
[399573515,1766508687596,-1528.13706729,0.0002,2]
[399573516,1766508687607,-1460.62403593,0.0002,5]
[399573517,1766508687619,-8270.88660459,0.0002,2]
[399573518,1766508687630,-6395.43945233,0.0002,5]
[399573519,1766508687642,-151.0,0.0002,2]
[399573520,1766508687654,-151.0,0.0002,2]
[399573521,1766508687666,-229.717414,0.0002,2]
[399573522,1766508687679,-214.112706,0.0002,2]
[399573523,1766508687691,-214.112706,0.0002,2]
[399573524,1766508687702,-214.112706,0.0002,2]
[399573525,1766508687714,-214.112706,0.0002,2]
[399573526,1766508687726,-151.0,0.0002,2]
[399573527,1766508687737,-151.0,0.0002,2]
[399573528,1766508687749,-151.0,0.0002,2]
[399573529,1766508687761,-478.072631,0.0002,2]
[399573530,1766508687775,-478.072631,0.0002,2]
[399573531,1766508687788,-478.072631,0.0002,2]
[399573532,1766508687799,-478.072631,0.0002,2]
[399573533,1766508687811,-186.82,0.0002,2]
[399573534,1766508687823,-150.0,0.0002,20]
[399573535,1766508687834,-201.573526,0.0002,2]
[399573536,1766508687845,-1000.0,0.00020116,2]
[399573537,1766508687857,-542.72,0.00020187,2]
[399573538,1766508687869,-300.0,0.00020274,2]
[399573539,1766508687881,-6505.95658958,0.00020304,2]
[399573540,1766508687892,-259.2,0.000204,2]
[399573541,1766508687903,-2000.0,0.000207,2]
[399573542,1766508687915,-246.75,0.00020709,2]
[399573543,1766508687926,-659.51,0.0002074,2]
[399573544,1766508687937,-1000.0,0.00020795,2]
[399573545,1766508687949,-500.0,0.00021,6]